[Event "Early-Titled-Tuesday-Blitz-September-05-2023"]
[Site "Chess.com"]
[Date "2023.09.05"]
[Round "2"]
[White "Vladimir_Zakhartsov"]
[Black "Doomfist26"]
[Result "0-1"]
[WhiteElo "2880"]
[BlackElo "2615"]
[TimeControl "180+1"]
[EndTime "8:16:01 PDT"]
[Termination "Doomfist26 won by resignation"]

1. e4 {[%clk 0:03:00.9]} 1... e6 {[%clk 0:02:57.9]} 2. d4 {[%clk 0:03:00.8]}
2... d5 {[%clk 0:02:56.4]} 3. Nd2 {[%clk 0:03:01.4]} 3... Nc6 {[%clk 0:02:55.7]}
4. Ngf3 {[%clk 0:03:00.9]} 4... Nf6 {[%clk 0:02:55.7]} 5. e5 {[%clk 0:03:00.7]}
5... Nd7 {[%clk 0:02:56]} 6. Bb5 {[%clk 0:03:00.7]} 6... a6 {[%clk 0:02:36.4]}
7. Ba4 {[%clk 0:03:00.8]} 7... b5 {[%clk 0:02:36.2]} 8. Bb3 {[%clk 0:03:01]}
8... f6 {[%clk 0:02:36.9]} 9. exf6 {[%clk 0:02:41.2]} 9... Qxf6 {[%clk
0:02:34.4]} 10. c3 {[%clk 0:02:36.8]} 10... Bd6 {[%clk 0:02:34.2]} 11. Nf1
{[%clk 0:02:36.1]} 11... O-O {[%clk 0:02:32.9]} 12. Ng3 {[%clk 0:02:33.5]} 12...
Ne7 {[%clk 0:02:18.7]} 13. O-O {[%clk 0:02:30.3]} 13... c6 {[%clk 0:02:05]} 14.
Re1 {[%clk 0:02:24.8]} 14... e5 {[%clk 0:01:46.1]} 15. Ne4 {[%clk 0:02:23.3]}
15... Qg6 {[%clk 0:01:38.2]} 16. Nxd6 {[%clk 0:02:22.4]} 16... Qxd6 {[%clk
0:01:38.9]} 17. Nxe5 {[%clk 0:02:11.8]} 17... Nxe5 {[%clk 0:01:38.1]} 18. Rxe5
{[%clk 0:02:12]} 18... Ng6 {[%clk 0:01:38.1]} 19. Re1 {[%clk 0:02:08.7]} 19...
Qf6 {[%clk 0:01:29.6]} 20. f3 {[%clk 0:02:05.8]} 20... Nh4 {[%clk 0:01:27.7]}
21. Bc2 {[%clk 0:02:01.4]} 21... Bh3 {[%clk 0:01:24.4]} 22. gxh3 {[%clk
0:01:32.2]} 22... Nxf3+ {[%clk 0:01:23.8]} 23. Kh1 {[%clk 0:01:32.9]} 23... Nxe1
{[%clk 0:01:21.5]} 24. Qxe1 {[%clk 0:01:33.1]} 24... Qf3+ {[%clk 0:01:17.2]} 25.
Kg1 {[%clk 0:01:31.8]} 25... Rae8 {[%clk 0:01:17.8]} 26. Be3 {[%clk 0:00:57.1]}
26... Rxe3 {[%clk 0:01:12.8]} 27. Qh4 {[%clk 0:00:56.6]} 27... g6 {[%clk
0:01:03.6]} 28. Re1 {[%clk 0:00:47.7]} 28... Re2 {[%clk 0:00:55.9]} 0-1

[Event "Early-Titled-Tuesday-Blitz-September-05-2023"]
[Site "Chess.com"]
[Date "2023.09.05"]
[Round "2"]
[White "sergiochess83"]
[Black "krstulov_alex"]
[Result "1/2-1/2"]
[WhiteElo "2940"]
[BlackElo "2633"]
[TimeControl "180+1"]
[EndTime "8:16:09 PDT"]
[Termination "Game drawn by agreement"]

1. d4 {[%clk 0:02:32.5]} 1... d5 {[%clk 0:02:33]} 2. c4 {[%clk 0:02:30.1]} 2...
c6 {[%clk 0:02:33]} 3. Nf3 {[%clk 0:02:28.5]} 3... Nf6 {[%clk 0:02:33.4]} 4. Nc3
{[%clk 0:02:26.6]} 4... dxc4 {[%clk 0:02:33.7]} 5. a4 {[%clk 0:02:25.7]} 5...
Bf5 {[%clk 0:02:33.4]} 6. Ne5 {[%clk 0:02:21.1]} 6... Nbd7 {[%clk 0:02:33.5]} 7.
Nxc4 {[%clk 0:02:19.3]} 7... Qc7 {[%clk 0:02:33.7]} 8. g3 {[%clk 0:02:16.4]}
8... e5 {[%clk 0:02:33]} 9. dxe5 {[%clk 0:02:16.5]} 9... Nxe5 {[%clk 0:02:33.9]}
10. Bf4 {[%clk 0:02:16.3]} 10... Nfd7 {[%clk 0:02:31.9]} 11. Bg2 {[%clk
0:02:12.8]} 11... f6 {[%clk 0:02:18.7]} 12. O-O {[%clk 0:02:06.9]} 12... g5
{[%clk 0:02:02.8]} 13. Nxe5 {[%clk 0:01:47.1]} 13... gxf4 {[%clk 0:01:59.5]} 14.
Nxd7 {[%clk 0:01:33.4]} 14... Qxd7 {[%clk 0:02:00.4]} 15. Qxd7+ {[%clk
0:01:29.9]} 15... Kxd7 {[%clk 0:02:00.4]} 16. gxf4 {[%clk 0:01:30.6]} 16... Rg8
{[%clk 0:01:55]} 17. Kh1 {[%clk 0:01:29.6]} 17... Bb4 {[%clk 0:01:53]} 18. Be4
{[%clk 0:01:21.9]} 18... Ke6 {[%clk 0:01:51.8]} 19. Bf3 {[%clk 0:01:03.6]} 19...
Rad8 {[%clk 0:01:23.2]} 20. Ne4 {[%clk 0:01:01.9]} 20... Rd4 {[%clk 0:01:02]}
21. Ng3 {[%clk 0:00:59.9]} 21... Rxf4 {[%clk 0:01:02]} 22. Nxf5 {[%clk
0:00:57.1]} 22... Kxf5 {[%clk 0:01:02.9]} 23. b3 {[%clk 0:00:43.6]} 1/2-1/2

[Event "Early-Titled-Tuesday-Blitz-September-05-2023"]
[Site "Chess.com"]
[Date "2023.09.05"]
[Round "2"]
[White "CheckThis4"]
[Black "mishanick"]
[Result "0-1"]
[WhiteElo "2660"]
[BlackElo "3055"]
[TimeControl "180+1"]
[EndTime "8:16:12 PDT"]
[Termination "mishanick won on time"]

1. d4 {[%clk 0:03:00.9]} 1... Nf6 {[%clk 0:02:59.3]} 2. Bg5 {[%clk 0:03:00.5]}
2... d5 {[%clk 0:02:58.1]} 3. e3 {[%clk 0:03:00.3]} 3... c5 {[%clk 0:02:57.8]}
4. Bxf6 {[%clk 0:03:00.1]} 4... exf6 {[%clk 0:02:57.9]} 5. Nc3 {[%clk
0:02:56.3]} 5... Nc6 {[%clk 0:02:56.4]} 6. Nge2 {[%clk 0:02:56.1]} 6... Be6
{[%clk 0:02:52.5]} 7. g3 {[%clk 0:02:56.1]} 7... Qb6 {[%clk 0:02:52.4]} 8. Bg2
{[%clk 0:02:55.7]} 8... Qxb2 {[%clk 0:02:50.6]} 9. Rb1 {[%clk 0:02:54.6]} 9...
Qa3 {[%clk 0:02:49.9]} 10. O-O {[%clk 0:02:35.4]} 10... O-O-O {[%clk 0:02:48]}
11. Nb5 {[%clk 0:02:21.7]} 11... Qa5 {[%clk 0:02:46.1]} 12. c4 {[%clk
0:02:19.9]} 12... dxc4 {[%clk 0:02:37.4]} 13. Qc2 {[%clk 0:02:06.1]} 13... Nb4
{[%clk 0:02:35.2]} 14. Rxb4 {[%clk 0:01:49.7]} 14... cxb4 {[%clk 0:02:36.1]} 15.
d5 {[%clk 0:01:49.8]} 15... Qxb5 {[%clk 0:02:31.5]} 16. dxe6 {[%clk 0:01:48.1]}
16... fxe6 {[%clk 0:02:28.3]} 17. Nd4 {[%clk 0:01:45.8]} 17... Qa6 {[%clk
0:02:27.6]} 18. Qe4 {[%clk 0:01:31.6]} 18... e5 {[%clk 0:02:26.9]} 19. Ne6
{[%clk 0:01:25.7]} 19... Rd7 {[%clk 0:02:26.7]} 20. Bh3 {[%clk 0:01:12.9]} 20...
Qc6 {[%clk 0:02:13.4]} 21. Qf5 {[%clk 0:00:58.7]} 21... c3 {[%clk 0:02:02.3]}
22. Rc1 {[%clk 0:00:44.8]} 22... a5 {[%clk 0:01:39.4]} 23. Bg2 {[%clk
0:00:34.2]} 23... Qc4 {[%clk 0:01:37.7]} 24. h4 {[%clk 0:00:30.2]} 24... h5
{[%clk 0:01:27.1]} 25. Bf1 {[%clk 0:00:27]} 25... Qg4 {[%clk 0:01:23.6]} 26. Bh3
{[%clk 0:00:09]} 26... Qxf5 {[%clk 0:01:23.5]} 27. Bxf5 {[%clk 0:00:09.9]} 27...
g6 {[%clk 0:01:23.5]} 28. Bxg6 {[%clk 0:00:08.4]} 28... Rd2 {[%clk 0:01:24.1]}
29. Bf5 {[%clk 0:00:08.1]} 29... Kb8 {[%clk 0:01:24.8]} 30. a3 {[%clk
0:00:05.6]} 30... Bd6 {[%clk 0:01:25.5]} 31. axb4 {[%clk 0:00:05]} 31... Bxb4
{[%clk 0:01:26.4]} 32. Ng7 {[%clk 0:00:03.5]} 32... a4 {[%clk 0:01:24.6]} 33.
Be6 {[%clk 0:00:03.2]} 33... a3 {[%clk 0:01:24.6]} 34. Nf5 {[%clk 0:00:03.5]}
34... a2 {[%clk 0:01:23.9]} 0-1

[Event "Early-Titled-Tuesday-Blitz-September-05-2023"]
[Site "Chess.com"]
[Date "2023.09.05"]
[Round "2"]
[White "Sjakkerntobi"]
[Black "TigranHH"]
[Result "1-0"]
[WhiteElo "2481"]
[BlackElo "2238"]
[TimeControl "180+1"]
[EndTime "8:16:12 PDT"]
[Termination "Sjakkerntobi won by resignation"]

1. f4 {[%clk 0:03:00.9]} 1... d5 {[%clk 0:02:49.8]} 2. Nf3 {[%clk 0:03:00.5]}
2... Nf6 {[%clk 0:02:49]} 3. g3 {[%clk 0:03:00.9]} 3... g6 {[%clk 0:02:45.9]} 4.
Bg2 {[%clk 0:03:01.3]} 4... Bg7 {[%clk 0:02:46.8]} 5. O-O {[%clk 0:03:01.9]}
5... O-O {[%clk 0:02:46.5]} 6. d3 {[%clk 0:03:02.6]} 6... c5 {[%clk 0:02:41.1]}
7. Nc3 {[%clk 0:03:02.9]} 7... Nc6 {[%clk 0:02:41.2]} 8. e4 {[%clk 0:03:02.5]}
8... dxe4 {[%clk 0:02:08.8]} 9. dxe4 {[%clk 0:03:03.4]} 9... Qxd1 {[%clk
0:02:08.8]} 10. Rxd1 {[%clk 0:03:03.4]} 10... Bg4 {[%clk 0:02:09.5]} 11. Be3
{[%clk 0:03:01.2]} 11... Rfd8 {[%clk 0:02:08.3]} 12. Bxc5 {[%clk 0:02:54.6]}
12... b6 {[%clk 0:02:04.8]} 13. Be3 {[%clk 0:02:52.9]} 13... Nb4 {[%clk
0:02:03.3]} 14. Rxd8+ {[%clk 0:02:48.2]} 14... Rxd8 {[%clk 0:02:02.5]} 15. Rc1
{[%clk 0:02:49.1]} 15... Nd7 {[%clk 0:01:26.1]} 16. Nd4 {[%clk 0:02:37.1]} 16...
Nc5 {[%clk 0:01:19.1]} 17. e5 {[%clk 0:02:23.5]} 17... g5 {[%clk 0:00:40.2]} 18.
a3 {[%clk 0:02:21.1]} 18... Nba6 {[%clk 0:00:39.1]} 19. Nc6 {[%clk 0:02:18]}
19... Rd7 {[%clk 0:00:36.9]} 20. Nd5 {[%clk 0:01:52.2]} 20... e6 {[%clk
0:00:30.6]} 21. Nc3 {[%clk 0:01:39.8]} 21... gxf4 {[%clk 0:00:27.5]} 22. gxf4
{[%clk 0:01:40.7]} 22... Kf8 {[%clk 0:00:27.7]} 23. b4 {[%clk 0:01:39.8]} 23...
Nb7 {[%clk 0:00:27.7]} 24. Nxa7 {[%clk 0:01:30.3]} 24... Rc7 {[%clk 0:00:23.3]}
25. Nab5 {[%clk 0:01:28.8]} 25... Rd7 {[%clk 0:00:22.6]} 26. Ne4 {[%clk
0:01:26.8]} 26... Nb8 {[%clk 0:00:20.4]} 27. Ned6 {[%clk 0:01:26.6]} 27... Nxd6
{[%clk 0:00:20.3]} 28. Nxd6 {[%clk 0:01:27.4]} 28... b5 {[%clk 0:00:18.6]} 29.
Nxb5 {[%clk 0:01:23]} 29... Bh6 {[%clk 0:00:17.1]} 30. Nd6 {[%clk 0:01:20.8]}
30... f6 {[%clk 0:00:17.6]} 31. Kf2 {[%clk 0:01:17.5]} 31... fxe5 {[%clk
0:00:16.4]} 32. fxe5 {[%clk 0:01:18.4]} 32... Bg7 {[%clk 0:00:16.9]} 33. Bf4
{[%clk 0:01:15.8]} 33... Ke7 {[%clk 0:00:17]} 34. c4 {[%clk 0:01:14]} 34... Ra7
{[%clk 0:00:16.2]} 35. Nc8+ {[%clk 0:01:11.5]} 1-0

[Event "Early-Titled-Tuesday-Blitz-September-05-2023"]
[Site "Chess.com"]
[Date "2023.09.05"]
[Round "2"]
[White "SHIVACalypso"]
[Black "Doudou2015"]
[Result "1-0"]
[WhiteElo "2467"]
[BlackElo "2173"]
[TimeControl "180+1"]
[EndTime "8:16:13 PDT"]
[Termination "SHIVACalypso won by resignation"]

1. c4 {[%clk 0:02:59.2]} 1... e5 {[%clk 0:03:00]} 2. Nc3 {[%clk 0:02:59.1]} 2...
Nf6 {[%clk 0:03:00.2]} 3. g3 {[%clk 0:02:59.6]} 3... d5 {[%clk 0:03:00.6]} 4.
cxd5 {[%clk 0:02:59.2]} 4... Nxd5 {[%clk 0:03:01.5]} 5. Bg2 {[%clk 0:02:59.7]}
5... Nxc3 {[%clk 0:03:00.7]} 6. bxc3 {[%clk 0:03:00.6]} 6... Bd6 {[%clk
0:02:59.5]} 7. d4 {[%clk 0:03:00.5]} 7... exd4 {[%clk 0:02:59.5]} 8. cxd4 {[%clk
0:03:01.4]} 8... O-O {[%clk 0:02:59.7]} 9. Nf3 {[%clk 0:03:01.4]} 9... Nc6
{[%clk 0:02:57.4]} 10. O-O {[%clk 0:03:01.8]} 10... Re8 {[%clk 0:02:57.7]} 11.
Bb2 {[%clk 0:02:59]} 11... Bf5 {[%clk 0:02:57.4]} 12. Rc1 {[%clk 0:02:55.5]}
12... Qd7 {[%clk 0:02:57]} 13. Qb3 {[%clk 0:02:52.3]} 13... Rab8 {[%clk
0:02:53.2]} 14. Rfd1 {[%clk 0:02:49.8]} 14... Rxe2 {[%clk 0:02:46.2]} 15. Ne5
{[%clk 0:02:48.4]} 15... Bxe5 {[%clk 0:02:21.8]} 16. dxe5 {[%clk 0:02:45.9]}
16... Qe8 {[%clk 0:02:02.4]} 17. Bf3 {[%clk 0:02:30.7]} 17... Be6 {[%clk
0:01:31.9]} 18. Qc3 {[%clk 0:02:23.2]} 18... Rxb2 {[%clk 0:01:02.4]} 19. Qxb2
{[%clk 0:02:24.1]} 19... h6 {[%clk 0:00:50.1]} 20. Qa3 {[%clk 0:02:14.5]} 20...
Nxe5 {[%clk 0:00:40.7]} 21. Rxc7 {[%clk 0:02:09.4]} 21... Nxf3+ {[%clk
0:00:40.7]} 22. Qxf3 {[%clk 0:02:10.3]} 22... Qa4 {[%clk 0:00:30.8]} 23. Rdc1
{[%clk 0:02:01.6]} 23... Qxa2 {[%clk 0:00:18]} 24. Rxb7 {[%clk 0:01:51.3]} 24...
Rxb7 {[%clk 0:00:18.9]} 25. Qxb7 {[%clk 0:01:51.5]} 25... Qd5 {[%clk 0:00:16.5]}
26. Qxd5 {[%clk 0:01:47.4]} 26... Bxd5 {[%clk 0:00:17.4]} 27. Ra1 {[%clk
0:01:47.8]} 27... Be6 {[%clk 0:00:17.8]} 28. Rxa7 {[%clk 0:01:48]} 28... g6
{[%clk 0:00:17.7]} 29. f4 {[%clk 0:01:47]} 29... Kg7 {[%clk 0:00:18.6]} 30. Kf2
{[%clk 0:01:47.5]} 30... h5 {[%clk 0:00:18.6]} 31. Ke3 {[%clk 0:01:47.4]} 31...
Kf6 {[%clk 0:00:19.2]} 32. Kd4 {[%clk 0:01:44.7]} 32... Bh3 {[%clk 0:00:18.5]}
33. Ra6+ {[%clk 0:01:41.3]} 33... Kf5 {[%clk 0:00:16.4]} 34. Kd5 {[%clk
0:01:38.9]} 34... Bf1 {[%clk 0:00:15.5]} 35. Ra2 {[%clk 0:01:36.8]} 35... Be2
{[%clk 0:00:12.9]} 36. Rxe2 {[%clk 0:01:35.9]} 1-0

[Event "Early-Titled-Tuesday-Blitz-September-05-2023"]
[Site "Chess.com"]
[Date "2023.09.05"]
[Round "2"]
[White "Rgoltsman"]
[Black "stasOR4ik"]
[Result "0-1"]
[WhiteElo "2226"]
[BlackElo "2477"]
[TimeControl "180+1"]
[EndTime "8:16:17 PDT"]
[Termination "stasOR4ik won by resignation"]

1. b3 {[%clk 0:02:59]} 1... d5 {[%clk 0:02:59]} 2. Bb2 {[%clk 0:02:59.1]} 2...
Nf6 {[%clk 0:02:59.3]} 3. e3 {[%clk 0:02:59.6]} 3... c5 {[%clk 0:02:59.6]} 4. f4
{[%clk 0:02:59.9]} 4... Nc6 {[%clk 0:02:59.9]} 5. Nf3 {[%clk 0:02:59.7]} 5...
Bg4 {[%clk 0:02:58.5]} 6. Be2 {[%clk 0:02:58.8]} 6... e6 {[%clk 0:02:58.3]} 7.
O-O {[%clk 0:02:58.5]} 7... Be7 {[%clk 0:02:57.8]} 8. Qe1 {[%clk 0:02:58.1]}
8... O-O {[%clk 0:02:49]} 9. Qg3 {[%clk 0:02:56.8]} 9... Bh5 {[%clk 0:02:40.9]}
10. d3 {[%clk 0:02:52.4]} 10... Re8 {[%clk 0:02:36.4]} 11. Nbd2 {[%clk
0:02:51.2]} 11... a5 {[%clk 0:02:33.8]} 12. a4 {[%clk 0:02:48.1]} 12... Nb4
{[%clk 0:02:29.7]} 13. Bd1 {[%clk 0:02:34.2]} 13... Rc8 {[%clk 0:02:20.6]} 14.
Rc1 {[%clk 0:02:27]} 14... Qb6 {[%clk 0:02:12]} 15. Ne5 {[%clk 0:02:22.2]} 15...
Bxd1 {[%clk 0:02:08.8]} 16. Nd7 {[%clk 0:02:06.7]} 16... Qd8 {[%clk 0:02:08.5]}
17. Nxf6+ {[%clk 0:02:00]} 17... Bxf6 {[%clk 0:02:09.4]} 18. Bxf6 {[%clk
0:01:59.6]} 18... Qxf6 {[%clk 0:02:10.1]} 19. Rfxd1 {[%clk 0:01:59.9]} 19... Na2
{[%clk 0:01:59.5]} 20. Ra1 {[%clk 0:01:53.6]} 20... Nc3 {[%clk 0:01:59.6]} 21.
Re1 {[%clk 0:01:51.7]} 21... Ne2+ {[%clk 0:01:59.9]} 22. Rxe2 {[%clk 0:01:51.5]}
22... Qxa1+ {[%clk 0:02:00.3]} 23. Nf1 {[%clk 0:01:50.2]} 23... c4 {[%clk
0:01:59.3]} 24. bxc4 {[%clk 0:01:46.8]} 24... dxc4 {[%clk 0:01:59.3]} 25. d4
{[%clk 0:01:47.5]} 25... Qxa4 {[%clk 0:01:56.4]} 26. e4 {[%clk 0:01:44.3]} 26...
c3 {[%clk 0:01:55.9]} 27. Ne3 {[%clk 0:01:43]} 27... Qxd4 {[%clk 0:01:55.7]} 28.
e5 {[%clk 0:01:40.9]} 28... a4 {[%clk 0:01:54.1]} 29. Kf1 {[%clk 0:01:34.1]}
29... a3 {[%clk 0:01:54.4]} 30. f5 {[%clk 0:01:34.5]} 30... a2 {[%clk
0:01:52.4]} 31. Re1 {[%clk 0:01:31.6]} 31... Ra8 {[%clk 0:01:18.6]} 32. f6
{[%clk 0:01:13.9]} 32... g6 {[%clk 0:01:18.8]} 33. Qg5 {[%clk 0:01:11.8]} 33...
Qb4 {[%clk 0:00:59]} 34. Qh4 {[%clk 0:00:23.2]} 34... Qxh4 {[%clk 0:00:57.1]}
0-1

[Event "Early-Titled-Tuesday-Blitz-September-05-2023"]
[Site "Chess.com"]
[Date "2023.09.05"]
[Round "2"]
[White "renehp"]
[Black "Gyulamiryan-koryun"]
[Result "1-0"]
[WhiteElo "2444"]
[BlackElo "2066"]
[TimeControl "180+1"]
[EndTime "8:16:17 PDT"]
[Termination "renehp won on time"]

1. e4 {[%clk 0:02:59.6]} 1... e5 {[%clk 0:02:59.3]} 2. Nf3 {[%clk 0:02:58.9]}
2... Nc6 {[%clk 0:02:59]} 3. Bb5 {[%clk 0:02:56.2]} 3... a6 {[%clk 0:02:59.1]}
4. Ba4 {[%clk 0:02:55.6]} 4... Nf6 {[%clk 0:02:56.6]} 5. O-O {[%clk 0:02:55.5]}
5... Be7 {[%clk 0:02:56.5]} 6. Re1 {[%clk 0:02:53.7]} 6... b5 {[%clk 0:02:56.7]}
7. Bb3 {[%clk 0:02:54.1]} 7... O-O {[%clk 0:02:56.5]} 8. a4 {[%clk 0:02:54.2]}
8... b4 {[%clk 0:02:56.1]} 9. d3 {[%clk 0:02:52.3]} 9... a5 {[%clk 0:02:55.5]}
10. h3 {[%clk 0:02:50.7]} 10... d6 {[%clk 0:02:55.6]} 11. Nbd2 {[%clk
0:02:51.1]} 11... Be6 {[%clk 0:02:54.5]} 12. Nc4 {[%clk 0:02:50]} 12... Qd7
{[%clk 0:02:36.8]} 13. Bg5 {[%clk 0:02:30.6]} 13... Nd4 {[%clk 0:02:22.5]} 14.
Nxd4 {[%clk 0:02:27.8]} 14... exd4 {[%clk 0:02:22]} 15. f4 {[%clk 0:02:28]}
15... h6 {[%clk 0:01:46.2]} 16. Bh4 {[%clk 0:02:23]} 16... Bxh3 {[%clk
0:01:43.7]} 17. gxh3 {[%clk 0:02:03]} 17... Qxh3 {[%clk 0:01:42.9]} 18. Bxf6
{[%clk 0:01:59.6]} 18... Qg3+ {[%clk 0:01:36.1]} 19. Kf1 {[%clk 0:01:59.2]}
19... Qxf4+ {[%clk 0:01:32.1]} 20. Ke2 {[%clk 0:01:58]} 20... Bxf6 {[%clk
0:01:26.1]} 21. Rg1 {[%clk 0:01:52.6]} 21... Qh2+ {[%clk 0:01:11.9]} 22. Kf1
{[%clk 0:01:32.8]} 22... Qf4+ {[%clk 0:00:45.8]} 23. Kg2 {[%clk 0:01:29.8]}
23... d5 {[%clk 0:00:37.6]} 24. Nd2 {[%clk 0:01:25.1]} 24... Ra6 {[%clk
0:00:33.3]} 25. Bxd5 {[%clk 0:01:12.5]} 25... Be5 {[%clk 0:00:33.2]} 26. Nf3
{[%clk 0:01:07.8]} 1-0

[Event "Early-Titled-Tuesday-Blitz-September-05-2023"]
[Site "Chess.com"]
[Date "2023.09.05"]
[Round "2"]
[White "Druid24"]
[Black "McCarthyStone"]
[Result "0-1"]
[WhiteElo "2643"]
[BlackElo "2429"]
[TimeControl "180+1"]
[EndTime "8:16:21 PDT"]
[Termination "McCarthyStone won by resignation"]

1. e4 {[%clk 0:03:00.9]} 1... e5 {[%clk 0:03:00.1]} 2. Nf3 {[%clk 0:02:59.5]}
2... d6 {[%clk 0:03:00.7]} 3. d4 {[%clk 0:02:59.4]} 3... exd4 {[%clk 0:03:01.6]}
4. Nxd4 {[%clk 0:02:59.9]} 4... Nf6 {[%clk 0:03:02.2]} 5. Nc3 {[%clk 0:03:00.2]}
5... g6 {[%clk 0:03:02.9]} 6. Be2 {[%clk 0:03:00.5]} 6... Bg7 {[%clk 0:03:03.3]}
7. Kf1 {[%clk 0:03:00.9]} 7... O-O {[%clk 0:03:04]} 8. Be3 {[%clk 0:02:59.6]}
8... Re8 {[%clk 0:03:04.4]} 9. Bf3 {[%clk 0:02:57.9]} 9... Nbd7 {[%clk
0:03:04.5]} 10. g3 {[%clk 0:02:54.2]} 10... Nc5 {[%clk 0:03:01.5]} 11. e5 {[%clk
0:02:50.3]} 11... dxe5 {[%clk 0:02:40.8]} 12. Nc6 {[%clk 0:02:48.8]} 12... Bh3+
{[%clk 0:02:14.4]} 13. Kg1 {[%clk 0:02:48.7]} 13... Qxd1+ {[%clk 0:02:02.8]} 14.
Rxd1 {[%clk 0:02:49.6]} 14... e4 {[%clk 0:01:57.8]} 15. Bg2 {[%clk 0:02:44]}
15... Bg4 {[%clk 0:01:36.9]} 16. Re1 {[%clk 0:02:42.3]} 16... Ncd7 {[%clk
0:01:16.1]} 17. Nd4 {[%clk 0:02:37]} 17... Ne5 {[%clk 0:01:08.9]} 18. h3 {[%clk
0:02:36.9]} 18... Nf3+ {[%clk 0:01:05.1]} 19. Nxf3 {[%clk 0:02:36.4]} 19... Bxf3
{[%clk 0:01:05.4]} 20. Kh2 {[%clk 0:02:34.9]} 20... Bxg2 {[%clk 0:00:59.2]} 21.
Kxg2 {[%clk 0:02:35]} 21... a6 {[%clk 0:00:52.6]} 22. Rd1 {[%clk 0:02:35.1]}
22... Rad8 {[%clk 0:00:52.7]} 23. Bf4 {[%clk 0:02:32.5]} 23... c6 {[%clk
0:00:46.9]} 24. Bc7 {[%clk 0:02:31.5]} 24... Rxd1 {[%clk 0:00:32.8]} 25. Rxd1
{[%clk 0:02:32.4]} 25... e3 {[%clk 0:00:30.9]} 26. fxe3 {[%clk 0:02:28.8]} 26...
Rxe3 {[%clk 0:00:31.8]} 27. Bf4 {[%clk 0:02:24.7]} 27... Re8 {[%clk 0:00:23.5]}
28. a4 {[%clk 0:02:22.9]} 28... h6 {[%clk 0:00:20.4]} 29. a5 {[%clk 0:02:22.8]}
29... g5 {[%clk 0:00:20.4]} 30. Bc7 {[%clk 0:02:22.2]} 30... Bf8 {[%clk
0:00:20.6]} 31. Kf3 {[%clk 0:02:16.7]} 31... Bb4 {[%clk 0:00:18]} 32. Na4 {[%clk
0:02:16]} 32... Nd5 {[%clk 0:00:17.1]} 33. c3 {[%clk 0:02:09.2]} 33... Nxc7
{[%clk 0:00:14.6]} 34. cxb4 {[%clk 0:02:09.7]} 34... Nd5 {[%clk 0:00:15.2]} 35.
Rd4 {[%clk 0:02:09]} 35... Re3+ {[%clk 0:00:15.6]} 36. Kf2 {[%clk 0:02:06.8]}
36... Rb3 {[%clk 0:00:16.2]} 37. Nc5 {[%clk 0:02:06.2]} 37... Rxb2+ {[%clk
0:00:15.1]} 38. Kf3 {[%clk 0:02:06.3]} 38... Rxb4 {[%clk 0:00:13.2]} 39. Rd2
{[%clk 0:02:06.9]} 39... Rb5 {[%clk 0:00:11.7]} 40. Nd7 {[%clk 0:02:06.8]} 40...
Rxa5 {[%clk 0:00:11]} 41. Ke4 {[%clk 0:02:07.4]} 41... Rb5 {[%clk 0:00:10.9]}
42. Ke5 {[%clk 0:02:06]} 42... Kg7 {[%clk 0:00:11.2]} 43. Kd6 {[%clk 0:02:04.5]}
43... a5 {[%clk 0:00:11.3]} 44. Rf2 {[%clk 0:02:01.9]} 44... a4 {[%clk
0:00:10.9]} 45. Ne5 {[%clk 0:02:02.2]} 45... f6 {[%clk 0:00:10.5]} 46. Nd7
{[%clk 0:01:59.8]} 46... a3 {[%clk 0:00:11.1]} 47. Ra2 {[%clk 0:01:58.8]} 47...
Ra5 {[%clk 0:00:11]} 48. Nc5 {[%clk 0:01:59.4]} 48... Nc3 {[%clk 0:00:10.1]} 49.
Ra1 {[%clk 0:01:58.4]} 49... a2 {[%clk 0:00:10.7]} 50. Nxb7 {[%clk 0:01:58.9]}
50... Rb5 {[%clk 0:00:11]} 51. Re1 {[%clk 0:01:53.2]} 51... Rxb7 {[%clk
0:00:10.7]} 52. Kxc6 {[%clk 0:01:53.2]} 52... Rb1 {[%clk 0:00:10.3]} 0-1

[Event "Early-Titled-Tuesday-Blitz-September-05-2023"]
[Site "Chess.com"]
[Date "2023.09.05"]
[Round "2"]
[White "Chessbard1972"]
[Black "BahadirOzen"]
[Result "0-1"]
[WhiteElo "2556"]
[BlackElo "2809"]
[TimeControl "180+1"]
[EndTime "8:16:23 PDT"]
[Termination "BahadirOzen won by resignation"]

1. d4 {[%clk 0:03:00.9]} 1... d6 {[%clk 0:02:58]} 2. Nf3 {[%clk 0:02:58.4]} 2...
Bg4 {[%clk 0:02:56.7]} 3. c4 {[%clk 0:02:57.1]} 3... Bxf3 {[%clk 0:02:56.1]} 4.
exf3 {[%clk 0:02:53.6]} 4... c6 {[%clk 0:02:56.6]} 5. f4 {[%clk 0:02:53.1]} 5...
g6 {[%clk 0:02:55.2]} 6. Nc3 {[%clk 0:02:52.1]} 6... Bg7 {[%clk 0:02:45.6]} 7.
Be3 {[%clk 0:02:50.7]} 7... Nf6 {[%clk 0:02:42.5]} 8. Bd3 {[%clk 0:02:46.4]}
8... O-O {[%clk 0:02:36.1]} 9. f5 {[%clk 0:02:45.6]} 9... d5 {[%clk 0:02:25.3]}
10. fxg6 {[%clk 0:02:44.2]} 10... hxg6 {[%clk 0:02:25]} 11. O-O {[%clk
0:02:38.9]} 11... dxc4 {[%clk 0:02:07]} 12. Bxc4 {[%clk 0:02:38.3]} 12... e6
{[%clk 0:02:07.9]} 13. Bg5 {[%clk 0:02:30.8]} 13... Nbd7 {[%clk 0:02:07.4]} 14.
Qd2 {[%clk 0:02:29.8]} 14... Re8 {[%clk 0:02:03.4]} 15. Rad1 {[%clk 0:02:26.3]}
15... Qa5 {[%clk 0:01:56.7]} 16. Bh6 {[%clk 0:02:19.9]} 16... Bxh6 {[%clk
0:01:46.4]} 17. Qxh6 {[%clk 0:02:19.1]} 17... Qh5 {[%clk 0:01:47.3]} 18. Qd2
{[%clk 0:02:16]} 18... Kg7 {[%clk 0:01:46.4]} 19. h3 {[%clk 0:02:15.9]} 19...
Rad8 {[%clk 0:01:45.9]} 20. Rfe1 {[%clk 0:02:14.5]} 20... Qh4 {[%clk 0:01:44.7]}
21. Qe3 {[%clk 0:02:09]} 21... a6 {[%clk 0:01:36.1]} 22. Bb3 {[%clk 0:02:06.3]}
22... Rh8 {[%clk 0:01:31.5]} 23. Qf3 {[%clk 0:02:01.7]} 23... Rh5 {[%clk
0:01:28.9]} 24. Bc2 {[%clk 0:01:49.4]} 24... Qg5 {[%clk 0:01:18.1]} 25. Ne4
{[%clk 0:01:43.8]} 25... Nxe4 {[%clk 0:01:18.2]} 26. Rxe4 {[%clk 0:01:42.5]}
26... Rh4 {[%clk 0:01:11.6]} 27. Rde1 {[%clk 0:01:18.9]} 27... Rxe4 {[%clk
0:01:09.6]} 28. Bxe4 {[%clk 0:01:12.1]} 28... Nf6 {[%clk 0:01:08.8]} 29. Rd1
{[%clk 0:01:09]} 29... e5 {[%clk 0:01:03.5]} 30. d5 {[%clk 0:00:48.5]} 30...
cxd5 {[%clk 0:01:03.5]} 31. Bxd5 {[%clk 0:00:46.9]} 31... e4 {[%clk 0:01:03.8]}
32. Qb3 {[%clk 0:00:42.8]} 32... Rxd5 {[%clk 0:01:02.2]} 33. Rxd5 {[%clk
0:00:42.3]} 33... Qxd5 {[%clk 0:01:03.1]} 34. Qa3 {[%clk 0:00:40.7]} 34... Qd1+
{[%clk 0:01:00.8]} 35. Kh2 {[%clk 0:00:40.3]} 35... Qd2 {[%clk 0:01:00.1]} 36.
Kg1 {[%clk 0:00:34.1]} 36... Qe1+ {[%clk 0:01:00.2]} 37. Kh2 {[%clk 0:00:34.3]}
37... Qxf2 {[%clk 0:01:01.1]} 38. Qb3 {[%clk 0:00:33.7]} 38... e3 {[%clk
0:01:01.1]} 39. Qxb7 {[%clk 0:00:31.4]} 39... e2 {[%clk 0:01:00.7]} 0-1